Workbook

Sheet Ichimoku
A1: TRADE (SEK) | B1: Datum: 95-01-02 | C1: Mån-dag-år | D1: Dagar i position | E1: Long in | F1: long exit | G1: short in | H1: short exit | J1: kronor start | K1: resultat kr | L1: resultat % | M1: resultat long % | N1: Resultat kort % | O1: Portföljsvärde KR
A2: 1 | B2: 1995-04-07 | C2: 1995-10-08 | D2: 184 | E2: 290.7147847 | F2: 331.2952695 | G2: 0 | H2: 0 | J2: 100000 | K2: 13958.86514 | L2: 0.1395886514 | M2: 0.1395886514 | N2: 0 | O2: 113958.8651
A3: 2 | B3: 1995-08-22 | C3: 1995-10-10 | D3: 49 | E3: 343.6027155 | F3: 352.897463 | G3: 0 | H3: 0 | J3: 113958.8651 | K3: 3082.684825 | L3: 0.02705085577 | M3: 0.02705085577 | N3: 0 | O3: 117041.55
A4: 3 | B4: 1995-10-24 | C4: 1995-11-29 | D4: 36 | E4: 0 | F4: 0 | G4: 347.340243 | H4: 343.035432 | J4: 117041.55 | K4: 1468.774665 | L4: 0.01254917305 | M4: 0 | N4: 0.01254917305 | O4: 118510.3246
A5: 4 | B5: 1995-12-14 | C5: 1996-01-04 | D5: 21 | E5: 0 | F5: 0 | G5: 336.6485915 | H5: 344.786307 | J5: 118510.3246 | K5: -2797.104427 | L5: -0.02360220036 | M5: 0 | N5: -0.02360220036 | O5: 115713.2202
A6: 5 | B6: 1996-01-23 | C6: 1996-02-02 | D6: 10 | E6: 0 | F6: 0 | G6: 330.142846 | H6: 343.7387835 | J6: 115713.2202 | K6: -4576.817587 | L6: -0.03955310879 | M6: 0 | N6: -0.03955310879 | O6: 111136.4026
A7: 6 | B7: 1996-02-02 | C7: 1996-04-15 | D7: 73 | E7: 343.7387835 | F7: 366.744536 | G7: 0 | H7: 0 | J7: 111136.4026 | K7: 7438.138188 | L7: 0.0669280093 | M7: 0.0669280093 | N7: 0 | O7: 118574.5408
A8: 7 | B8: 1996-04-23 | C8: 1996-06-24 | D8: 62 | E8: 377.1054585 | F8: 385.0363855 | G8: 0 | H8: 0 | J8: 118574.5408 | K8: 2493.748117 | L8: 0.02103105861 | M8: 0.02103105861 | N8: 0 | O8: 121068.2889
A9: 8 | B9: 1996-07-12 | C9: 1996-08-09 | D9: 28 | E9: 0 | F9: 0 | G9: 377.209301 | H9: 377.3475795 | J9: 121068.2889 | K9: -44.36530748 | L9: -0.0003664486206 | M9: 0 | N9: -0.0003664486206 | O9: 121023.9236
A10: 9 | B10: 1996-08-21 | C10: 1996-11-11 | D10: 82 | E10: 382.01091 | F10: 420.74952 | G10: 0 | H10: 0 | J10: 121023.9236 | K10: 12272.68242 | L10: 0.1014070776 | M10: 0.1014070776 | N10: 0 | O10: 133296.606
A11: 10 | B11: 1996-11-14 | C11: 1997-03-21 | D11: 127 | E11: 423.449619 | F11: 524.287725 | G11: 0 | H11: 0 | J11: 133296.606 | K11: 31742.56555 | L11: 0.238134837 | M11: 0.238134837 | N11: 0 | O11: 165039.1716
A12: 11 | B12: 1997-04-29 | C12: 1997-05-09 | D12: 10 | E12: 0 | F12: 0 | G12: 509.7340055 | H12: 539.2244775 | J12: 165039.1716 | K12: -9026.079623 | L12: -0.05469052914 | M12: 0 | N12: -0.05469052914 | O12: 156013.092
A13: 12 | B13: 1997-05-09 | C13: 1997-08-20 | D13: 103 | E13: 539.2244775 | F13: 644.0588095 | G13: 0 | H13: 0 | J13: 156013.092 | K13: 30331.57611 | L13: 0.1944168642 | M13: 0.1944168642 | N13: 0 | O13: 186344.6681
A14: 13 | B14: 1997-09-29 | C14: 1997-10-22 | D14: 23 | E14: 648.326001 | F14: 631.4391225 | G14: 0 | H14: 0 | J14: 186344.6681 | K14: -4853.699781 | L14: -0.02604689381 | M14: -0.02604689381 | N14: 0 | O14: 181490.9683
A15: 14 | B15: 1997-10-24 | C15: 1997-11-28 | D15: 35 | E15: 0 | F15: 0 | G15: 620.42963 | H15: 602.0858925 | J15: 181490.9683 | K15: 5529.481295 | L15: 0.03046697777 | M15: 0 | N15: 0.03046697777 | O15: 187020.4496
A16: 15 | B16: 1997-12-02 | C16: 1997-12-23 | D16: 21 | E16: 615.0843885 | F16: 580.4086505 | G16: 0 | H16: 0 | J16: 187020.4496 | K16: -10543.38597 | L16: -0.05637557813 | M16: -0.05637557813 | N16: 0 | O16: 176477.0636
A17: 16 | B17: 1998-01-19 | C17: 1998-01-27 | D17: 8 | E17: 0 | F17: 0 | G17: 591.9039 | H17: 605.2814895 | J17: 176477.0636 | K17: -3900.396351 | L17: -0.02210143501 | M17: 0 | N17: -0.02210143501 | O17: 172576.6673
A18: 17 | B18: 1998-01-28 | C18: 1998-04-28 | D18: 90 | E18: 613.592643 | F18: 729.423106 | G18: 0 | H18: 0 | J18: 172576.6673 | K18: 32578.02306 | L18: 0.1887742044 | M18: 0.1887742044 | N18: 0 | O18: 205154.6903
A19: 18 | B19: 1998-05-11 | C19: 1998-06-23 | D19: 43 | E19: 758.889255 | F19: 742.638495 | G19: 0 | H19: 0 | J19: 205154.6903 | K19: -4393.15699 | L19: -0.02141387547 | M19: -0.02141387547 | N19: 0 | O19: 200761.5333
A20: 19 | B20: 1998-07-03 | C20: 1998-08-03 | D20: 31 | E20: 785.608608 | F20: 774.336638 | G20: 0 | H20: 0 | J20: 200761.5333 | K20: -2880.541223 | L20: -0.01434807344 | M20: -0.01434807344 | N20: 0 | O20: 197880.9921
A21: 20 | B21: 1998-08-06 | C21: 1998-10-21 | D21: 76 | E21: 0 | F21: 0 | G21: 756.173724 | H21: 618.92931 | J21: 197880.9921 | K21: 43879.09954 | L21: 0.2217448936 | M21: 0 | N21: 0.2217448936 | O21: 241760.0917
A22: 21 | B22: 1998-11-17 | C22: 1998-12-22 | D22: 35 | E22: 644.328003 | F22: 668.7464595 | G22: 0 | H22: 0 | J22: 241760.0917 | K22: 9162.116583 | L22: 0.03789755588 | M22: 0.03789755588 | N22: 0 | O22: 250922.2082
A23: 22 | B23: 1999-01-04 | C23: 1999-03-18 | D23: 73 | E23: 702.379014 | F23: 722.076781 | G23: 0 | H23: 0 | J23: 250922.2082 | K23: 7036.951695 | L23: 0.02804435584 | M23: 0.02804435584 | N23: 0 | O23: 257959.1599
A24: 23 | B24: 1999-04-06 | C24: 1999-07-20 | D24: 105 | E24: 742.6361325 | F24: 829.029278 | G24: 0 | H24: 0 | J24: 257959.1599 | K24: 30009.18251 | L24: 0.1163330758 | M24: 0.1163330758 | N24: 0 | O24: 287968.3424
A25: 24 | B25: 1999-08-06 | C25: 1999-08-17 | D25: 11 | E25: 0 | F25: 0 | G25: 803.384107 | H25: 829.566576 | J25: 287968.3424 | K25: -9088.748772 | L25: -0.03156162478 | M25: 0 | N25: -0.03156162478 | O25: 278879.5937
A26: 25 | B26: 1999-08-17 | C26: 1999-09-20 | D26: 34 | E26: 829.858722 | F26: 838.0637585 | G26: 0 | H26: 0 | J26: 278879.5937 | K26: 2757.357589 | L26: 0.009887269101 | M26: 0.009887269101 | N26: 0 | O26: 281636.9513
A27: 26 | B27: 1999-10-12 | C27: 2000-03-30 | D27: 170 | E27: 865.7396535 | F27: 1442.182548 | G27: 0 | H27: 0 | J27: 281636.9513 | K27: 187524.7584 | L27: 0.6658386181 | M27: 0.6658386181 | N27: 0 | O27: 469161.7097
A28: 27 | B28: 2000-04-17 | C28: 2000-05-03 | D28: 16 | E28: 0 | F28: 0 | G28: 1306.379483 | H28: 1435.165224 | J28: 469161.7097 | K28: -42100.61475 | L28: -0.08973582856 | M28: 0 | N28: -0.08973582856 | O28: 427061.0949
A29: 28 | B29: 2000-06-27 | C29: 2000-07-14 | D29: 17 | E29: 0 | F29: 0 | G29: 1340.476427 | H29: 1389.668487 | J29: 427061.0949 | K29: -15117.28546 | L29: -0.03539841405 | M29: 0 | N29: -0.03539841405 | O29: 411943.8095
A30: 29 | B30: 2000-07-14 | C30: 2000-07-31 | D30: 17 | E30: 1389.949628 | F30: 1313.664839 | G30: 0 | H30: 0 | J30: 411943.8095 | K30: -22608.76636 | L30: -0.05488313173 | M30: -0.05488313173 | N30: 0 | O30: 389335.0431
A31: 30 | B31: 2000-07-31 | C31: 2000-08-30 | D31: 30 | E31: 0 | F31: 0 | G31: 1313.664839 | H31: 1319.063202 | J31: 389335.0431 | K31: -1593.382249 | L31: -0.00409257342 | M31: 0 | N31: -0.00409257342 | O31: 387741.6609
A32: 31 | B32: 2000-09-19 | C32: 2000-12-15 | D32: 87 | E32: 0 | F32: 0 | G32: 1304.04765 | H32: 1127.990713 | J32: 387741.6609 | K32: 60518.76859 | L32: 0.1560801294 | M32: 0 | N32: 0.1560801294 | O32: 448260.4294
A33: 32 | B33: 2000-12-22 | C33: 2001-01-23 | D33: 32 | E33: 0 | F33: 0 | G33: 1061.293088 | H33: 1100.861155 | J33: 448260.4294 | K33: -16111.74928 | L33: -0.03594283194 | M33: 0 | N33: -0.03594283194 | O33: 432148.6802
A34: 33 | B34: 2001-02-09 | C34: 2001-04-20 | D34: 70 | E34: 0 | F34: 0 | G34: 1058.378546 | H34: 900.4530015 | J34: 432148.6802 | K34: 75792.20182 | L34: 0.17538455 | M34: 0 | N34: 0.17538455 | O34: 507940.882
A35: 34 | B35: 2001-05-22 | C35: 2001-06-08 | D35: 17 | E35: 952.0868055 | F35: 926.9472945 | G35: 0 | H35: 0 | J35: 507940.882 | K35: -13411.99701 | L35: -0.02640464174 | M35: -0.02640464174 | N35: 0 | O35: 494528.885
A36: 35 | B36: 2001-06-14 | C36: 2001-08-09 | D36: 56 | E36: 0 | F36: 0 | G36: 883.8168705 | H36: 851.153364 | J36: 494528.885 | K36: 18977.83423 | L36: 0.03837558292 | M36: 0 | N36: 0.03837558292 | O36: 513506.7192
A37: 36 | B37: 2001-08-17 | C37: 2001-10-11 | D37: 55 | E37: 0 | F37: 0 | G37: 821.1162365 | H37: 727.175406 | J37: 513506.7192 | K37: 66337.84266 | L37: 0.1291859292 | M37: 0 | N37: 0.1291859292 | O37: 579844.5619
A38: 37 | B38: 2001-10-29 | C38: 2001-12-20 | D38: 52 | E38: 768.0148155 | F38: 827.280153 | G38: 0 | H38: 0 | J38: 579844.5619 | K38: 44744.81867 | L38: 0.07716691957 | M38: 0.07716691957 | N38: 0 | O38: 624589.3805
A39: 38 | B39: 2002-01-09 | C39: 2002-01-14 | D39: 5 | E39: 838.8562185 | F39: 833.2901465 | G39: 0 | H39: 0 | J39: 624589.3805 | K39: -4144.344866 | L39: -0.006635311126 | M39: -0.006635311126 | N39: 0 | O39: 620445.0357
A40: 39 | B40: 2002-01-23 | C40: 2002-03-05 | D40: 41 | E40: 0 | F40: 0 | G40: 786.4335865 | H40: 825.458523 | J40: 620445.0357 | K40: -29332.57995 | L40: -0.04727667764 | M40: 0 | N40: -0.04727667764 | O40: 591112.4557
A41: 40 | B41: 2002-03-07 | C41: 2002-04-04 | D41: 28 | E41: 821.082336 | F41: 783.236186 | G41: 0 | H41: 0 | J41: 591112.4557 | K41: -27246.14778 | L41: -0.0460930023 | M41: -0.0460930023 | N41: 0 | O41: 563866.3079
A42: 41 | B42: 2002-04-10 | C42: 2002-08-22 | D42: 134 | E42: 0 | F42: 0 | G42: 768.8154 | H42: 544.664196 | J42: 563866.3079 | K42: 232053.6447 | L42: 0.411540185 | M42: 0 | N42: 0.411540185 | O42: 795919.9527
A43: 42 | B43: 2002-09-05 | C43: 2002-10-23 | D43: 48 | E43: 0 | F43: 0 | G43: 505.9658905 | H43: 500.6932215 | J43: 795919.9527 | K43: 8381.624277 | L43: 0.01053073773 | M43: 0 | N43: 0.01053073773 | O43: 804301.5769
A44: 43 | B44: 2002-11-01 | C44: 2002-12-16 | D44: 45 | E44: 508.792269 | F44: 531.6930205 | G44: 0 | H44: 0 | J44: 804301.5769 | K44: 36201.63211 | L44: 0.04501002255 | M44: 0.04501002255 | N44: 0 | O44: 840503.209
A45: 44 | B45: 2003-01-24 | C45: 2003-03-25 | D45: 60 | E45: 0 | F45: 0 | G45: 498.8654425 | H45: 487.2204885 | J45: 840503.209 | K45: 20088.68969 | L45: 0.02390078881 | M45: 0 | N45: 0.02390078881 | O45: 860591.8987
A46: 45 | B46: 2003-04-08 | C46: 2003-05-21 | D46: 43 | E46: 498.943347 | F46: 499.7649925 | G46: 0 | H46: 0 | J46: 860591.8987 | K46: 1417.197895 | L46: 0.001646771131 | M46: 0.001646771131 | N46: 0 | O46: 862009.0966
A47: 46 | B47: 2003-06-09 | C47: 2003-09-25 | D47: 108 | E47: 517.382562 | F47: 577.0463325 | G47: 0 | H47: 0 | J47: 862009.0966 | K47: 99405.57856 | L47: 0.1153184798 | M47: 0.1153184798 | N47: 0 | O47: 961414.6752
A48: 47 | B48: 2003-10-15 | C48: 2003-11-28 | D48: 44 | E48: 614.124909 | F48: 616.973359 | G48: 0 | H48: 0 | J48: 961414.6752 | K48: 4459.258355 | L48: 0.004638225804 | M48: 0.004638225804 | N48: 0 | O48: 965873.9335
A49: 48 | B49: 2003-12-05 | C49: 2003-12-18 | D49: 13 | E49: 627.301494 | F49: 606.320688 | G49: 0 | H49: 0 | J49: 965873.9335 | K49: -32304.74312 | L49: -0.0334461279 | M49: -0.0334461279 | N49: 0 | O49: 933569.1904
A50: 49 | B50: 2003-12-29 | C50: 2004-03-17 | D50: 79 | E50: 629.1534195 | F50: 684.0987795 | G50: 0 | H50: 0 | J50: 933569.1904 | K50: 81530.66273 | L50: 0.0873322123 | M50: 0.0873322123 | N50: 0 | O50: 1015099.853
A51: 50 | B51: 2004-04-05 | C51: 2004-05-06 | D51: 31 | E51: 717.296469 | F51: 695.4011255 | G51: 0 | H51: 0 | J51: 1015099.853 | K51: -30985.73732 | L51: -0.03052481707 | M51: -0.03052481707 | N51: 0 | O51: 984114.1158
A52: 51 | B52: 2004-05-10 | C52: 2004-06-07 | D52: 28 | E52: 0 | F52: 0 | G52: 677.7519545 | H52: 685.872765 | J52: 984114.1158 | K52: -11652.02156 | L52: -0.01184011221 | M52: 0 | N52: -0.01184011221 | O52: 972462.0943
A53: 52 | B53: 2004-06-24 | C53: 2004-07-14 | D53: 20 | E53: 690.7401975 | F53: 673.928867 | G53: 0 | H53: 0 | J53: 972462.0943 | K53: -23667.917 | L53: -0.02433813836 | M53: -0.02433813836 | N53: 0 | O53: 948794.1773
A54: 53 | B54: 2004-07-14 | C54: 2004-08-27 | D54: 44 | E54: 0 | F54: 0 | G54: 673.928867 | H54: 688.858257 | J54: 948794.1773 | K54: -20562.89252 | L54: -0.02167265885 | M54: 0 | N54: -0.02167265885 | O54: 928231.2847
A55: 54 | B55: 2004-08-27 | C55: 2004-10-24 | D55: 58 | E55: 688.858257 | F55: 698.096777 | G55: 0 | H55: 0 | J55: 928231.2847 | K55: 12448.83574 | L55: 0.01341135118 | M55: 0.01341135118 | N55: 0 | O55: 940680.1205
A56: 55 | B56: 2004-11-08 | C56: 2007-12-16 | D56: 1133 | E56: 726.114876 | F56: 737.135248 | G56: 0 | H56: 0 | J56: 940680.1205 | K56: 14276.8661 | L56: 0.01517717425 | M56: 0.01517717425 | N56: 0 | O56: 954956.9866
A57: 56 | B57: 2005-01-04 | C57: 2005-01-04 | D57: 0 | E57: 746.979303 | F57: 732.931351 | G57: 0 | H57: 0 | J57: 954956.9866 | K57: -17959.25249 | L57: -0.01880634703 | M57: -0.01880634703 | N57: 0 | O57: 936997.7341
A58: 57 | B58: 2005-02-07 | C58: 2005-03-30 | D58: 51 | E58: 760.0508355 | F58: 767.9348405 | G58: 0 | H58: 0 | J58: 936997.7341 | K58: 9719.47464 | L58: 0.01037299695 | M58: 0.01037299695 | N58: 0 | O58: 946717.2087
A59: 58 | B59: 2005-04-07 | C59: 2005-04-28 | D59: 21 | E59: 788.123865 | F59: 756.643489 | G59: 0 | H59: 0 | J59: 946717.2087 | K59: -37815.13924 | L59: -0.03994343706 | M59: -0.03994343706 | N59: 0 | O59: 908902.0695
A60: 59 | B60: 2005-04-29 | C60: 2005-05-19 | D60: 20 | E60: 0 | F60: 0 | G60: 747.917854 | H60: 782.054832 | J60: 908902.0695 | K60: -39673.90608 | L60: -0.04365036389 | M60: 0 | N60: -0.04365036389 | O60: 869228.1634
A61: 60 | B61: 2005-05-19 | C61: 2005-08-24 | D61: 97 | E61: 782.054832 | F61: 858.8693505 | G61: 0 | H61: 0 | J61: 869228.1634 | K61: 85376.80493 | L61: 0.09822139747 | M61: 0.09822139747 | N61: 0 | O61: 954604.9684
A62: 61 | B62: 2005-09-09 | C62: 2005-10-19 | D62: 40 | E62: 861.0733215 | F62: 869.760902 | G62: 0 | H62: 0 | J62: 954604.9684 | K62: 9631.244287 | L62: 0.01008924592 | M62: 0.01008924592 | N62: 0 | O62: 964236.2126
A63: 62 | B63: 2005-11-07 | C63: 2006-01-23 | D63: 77 | E63: 896.466009 | F63: 935.963784 | G63: 0 | H63: 0 | J63: 964236.2126 | K63: 42483.69106 | L63: 0.04405942289 | M63: 0.04405942289 | N63: 0 | O63: 1006719.904
A64: 63 | B64: 2006-02-07 | C64: 2006-04-26 | D64: 78 | E64: 962.214867 | F64: 1052.343565 | G64: 0 | H64: 0 | J64: 1006719.904 | K64: 94297.39374 | L64: 0.0936679541 | M64: 0.0936679541 | N64: 0 | O64: 1101017.297
A65: 64 | B65: 2006-05-16 | C65: 2006-06-30 | D65: 45 | E65: 0 | F65: 0 | G65: 996.9302855 | H65: 943.0602945 | J65: 1101017.297 | K65: 62892.89481 | L65: 0.0571225311 | M65: 0 | N65: 0.0571225311 | O65: 1163910.192
A66: 65 | B66: 2006-08-17 | C66: 2006-11-30 | D66: 105 | E66: 968.6911035 | F66: 1084.515471 | G66: 0 | H66: 0 | J66: 1163910.192 | K66: 139166.3053 | L66: 0.1195679067 | M66: 0.1195679067 | N66: 0 | O66: 1303076.498
A67: 66 | B67: 2006-12-12 | C67: 2007-03-09 | D67: 87 | E67: 1112.424934 | F67: 1186.822292 | G67: 0 | H67: 0 | J67: 1303076.498 | K67: 87147.85603 | L67: 0.06687854182 | M67: 0.06687854182 | N67: 0 | O67: 1390224.354
A68: 67 | B68: 2007-03-22 | C68: 2007-05-10 | D68: 49 | E68: 1205.12326 | F68: 1239.434973 | G68: 0 | H68: 0 | J68: 1390224.354 | K68: 39581.8247 | L68: 0.02847153741 | M68: 0.02847153741 | N68: 0 | O68: 1429806.178
A69: 68 | B69: 2007-05-24 | C69: 2007-06-15 | D69: 22 | E69: 1279.81959 | F69: 1267.035166 | G69: 0 | H69: 0 | J69: 1429806.178 | K69: -14282.67646 | L69: -0.009989239577 | M69: -0.009989239577 | N69: 0 | O69: 1415523.502
A70: 69 | B70: 2007-06-21 | C70: 2007-07-27 | D70: 36 | E70: 1278.963162 | F70: 1211.446974 | G70: 0 | H70: 0 | J70: 1415523.502 | K70: -74725.17928 | L70: -0.05278978356 | M70: -0.05278978356 | N70: 0 | O70: 1340798.323
A71: 70 | B71: 2007-07-27 | C71: 2007-08-31 | D71: 35 | E71: 0 | F71: 0 | G71: 1211.446974 | H71: 1201.584492 | J71: 1340798.323 | K71: 11005.13425 | L71: 0.008207896794 | M71: 0 | N71: 0.008207896794 | O71: 1351803.457
A72: 71 | B72: 2007-10-02 | C72: 2007-10-24 | D72: 22 | E72: 1230.007697 | F72: 1174.758327 | G72: 0 | H72: 0 | J72: 1351803.457 | K72: -60720.17995 | L72: -0.04491790552 | M72: -0.04491790552 | N72: 0 | O72: 1291083.277
A73: 72 | B73: 2007-10-24 | C73: 2007-12-13 | D73: 50 | E73: 0 | F73: 0 | G73: 1174.758327 | H73: 1130.52498 | J73: 1291083.277 | K73: 50515.41151 | L73: 0.03912637738 | M73: 0 | N73: 0.03912637738 | O73: 1341598.688
A74: 73 | B74: 2008-01-04 | C74: 2008-02-15 | D74: 42 | E74: 0 | F74: 0 | G74: 1050.442516 | H74: 951.317421 | J74: 1341598.688 | K74: 139791.5086 | L74: 0.1041977082 | M74: 0 | N74: 0.1041977082 | O74: 1481390.197
A75: 74 | B75: 2008-04-23 | C75: 2008-06-03 | D75: 41 | E75: 961.7556375 | F75: 997.8078465 | G75: 0 | H75: 0 | J75: 1481390.197 | K75: 55531.14212 | L75: 0.0374858307 | M75: 0.0374858307 | N75: 0 | O75: 1536921.339
A76: 75 | B76: 2008-06-11 | C76: 2008-07-31 | D76: 50 | E76: 0 | F76: 0 | G76: 951.406059 | H76: 866.39298 | J76: 1536921.339 | K76: 150807.3337 | L76: 0.09812300072 | M76: 0 | N76: 0.09812300072 | O76: 1687728.673
A77: 76 | B77: 2008-09-10 | C77: 2008-11-11 | D77: 62 | E77: 0 | F77: 0 | G77: 846.4815475 | H77: 685.564611 | J77: 1687728.673 | K77: 396146.6553 | L77: 0.2347217664 | M77: 0 | N77: 0.2347217664 | O77: 2083875.328
A78: 77 | B78: 2008-11-21 | C78: 2008-12-09 | D78: 18 | E78: 0 | F78: 0 | G78: 587.4611225 | H78: 667.081374 | J78: 2083875.328 | K78: -248723.2955 | L78: -0.1193561305 | M78: 0 | N78: -0.1193561305 | O78: 1835152.033
A79: 78 | B79: 2009-01-20 | C79: 2009-02-16 | D79: 27 | E79: 0 | F79: 0 | G79: 620.7444725 | H79: 677.826744 | J79: 1835152.033 | K79: -154544.8708 | L79: -0.0842136608 | M79: 0 | N79: -0.0842136608 | O79: 1680607.162
A80: 79 | B80: 2009-03-19 | C80: 2009-06-26 | D80: 99 | E80: 662.921295 | F80: 778.956327 | G80: 0 | H80: 0 | J80: 1680607.162 | K80: 294166.6036 | L80: 0.1750359098 | M80: 0.1750359098 | N80: 0 | O80: 1974773.765
A81: 80 | B81: 2009-07-06 | C81: 2009-10-06 | D81: 92 | E81: 790.8282165 | F81: 876.26165 | G81: 0 | H81: 0 | J81: 1974773.765 | K81: 213335.4623 | L81: 0.1080303304 | M81: 0.1080303304 | N81: 0 | O81: 2188109.228
A82: 81 | B82: 2009-10-15 | C82: 2009-12-21 | D82: 67 | E82: 929.1333345 | F82: 935.4770275 | G82: 0 | H82: 0 | J82: 2188109.228 | K82: 14939.39855 | L82: 0.00682753784 | M82: 0.00682753784 | N82: 0 | O82: 2203048.626
A83: 82 | B83: 2009-12-28 | C83: 2010-01-28 | D83: 31 | E83: 961.3694445 | F83: 946.5574845 | G83: 0 | H83: 0 | J83: 2203048.626 | K83: -33942.69322 | L83: -0.01540714663 | M83: -0.01540714663 | N83: 0 | O83: 2169105.933
A84: 83 | B84: 2010-02-08 | C84: 2010-03-01 | D84: 21 | E84: 0 | F84: 0 | G84: 939.286122 | H84: 954.7841535 | J84: 2169105.933 | K84: -35208.87098 | L84: -0.01623197394 | M84: 0 | N84: -0.01623197394 | O84: 2133897.062
A85: 84 | B85: 2010-03-02 | C85: 2010-05-06 | D85: 65 | E85: 966.569043 | F85: 991.5749645 | G85: 0 | H85: 0 | J85: 2133897.062 | K85: 55205.63979 | L85: 0.02587080735 | M85: 0.02587080735 | N85: 0 | O85: 2189102.702
A86: 85 | B86: 2010-05-07 | C86: 2010-06-10 | D86: 34 | E86: 0 | F86: 0 | G86: 952.097713 | H86: 993.952728 | J86: 2189102.702 | K86: -92182.37833 | L86: -0.04210966359 | M86: 0 | N86: -0.04210966359 | O86: 2096920.323
A87: 86 | B87: 2010-06-14 | C87: 2010-07-08 | D87: 24 | E87: 1023.070279 | F87: 1028.280603 | G87: 0 | H87: 0 | J87: 2096920.323 | K87: 10679.25871 | L87: 0.005092829989 | M87: 0.005092829989 | N87: 0 | O87: 2107599.582
A88: 87 | B88: 2010-07-14 | C88: 2010-08-20 | D88: 37 | E88: 1067.320393 | F88: 1038.976252 | G88: 0 | H88: 0 | J88: 2107599.582 | K88: -55970.16711 | L88: -0.02655635709 | M88: -0.02655635709 | N88: 0 | O88: 2051629.415
A89: 88 | B89: 2010-09-13 | C89: 2010-11-17 | D89: 65 | E89: 1074.370917 | F89: 1081.262099 | G89: 0 | H89: 0 | J89: 2051629.415 | K89: 13159.4689 | L89: 0.006414154917 | M89: 0.006414154917 | N89: 0 | O89: 2064788.884
A90: 89 | B90: 2010-11-30 | C90: 2011-02-01 | D90: 63 | E90: 1104.875162 | F90: 1149.8258 | G90: 0 | H90: 0 | J90: 2064788.884 | K90: 84003.67834 | L90: 0.04068390671 | M90: 0.04068390671 | N90: 0 | O90: 2148792.562
A91: 90 | B91: 2011-02-16 | C91: 2011-03-10 | D91: 22 | E91: 0 | F91: 0 | G91: 1127.425005 | H91: 1121.512476 | J91: 2148792.562 | K91: 11328.27292 | L91: 0.005271924857 | M91: 0 | N91: 0.005271924857 | O91: 2160120.835
A92: 91 | B92: 2011-03-14 | C92: 2011-03-28 | D92: 14 | E92: 0 | F92: 0 | G92: 1091.996729 | H92: 1125.672555 | J92: 2160120.835 | K92: -64622.57087 | L92: -0.02991618331 | M92: 0 | N92: -0.02991618331 | O92: 2095498.264
A93: 92 | B93: 2011-04-01 | C93: 2011-05-30 | D93: 59 | E93: 1137.457444 | F93: 1148.094666 | G93: 0 | H93: 0 | J93: 2095498.264 | K93: 19596.58205 | L93: 0.009351752939 | M93: 0.009351752939 | N93: 0 | O93: 2115094.846
A94: 93 | B94: 2011-06-09 | C94: 2011-07-11 | D94: 32 | E94: 0 | F94: 0 | G94: 1102.385532 | H94: 1114.927185 | J94: 2115094.846 | K94: -23792.39383 | L94: -0.01124885434 | M94: 0 | N94: -0.01124885434 | O94: 2091302.453
A95: 94 | B95: 2011-07-21 | C95: 2011-09-09 | D95: 50 | E95: 0 | F95: 0 | G95: 1090.265594 | H95: 914.2278855 | J95: 2091302.453 | K95: 402687.4463 | L95: 0.1925534233 | M95: 0 | N95: 0.1925534233 | O95: 2493989.899
A96: 95 | B96: 2011-09-14 | C96: 2011-10-07 | D96: 23 | E96: 0 | F96: 0 | G96: 867.2591535 | H96: 923.933736 | J96: 2493989.899 | K96: -152982.6553 | L96: -0.06134052724 | M96: 0 | N96: -0.06134052724 | O96: 2341007.244
A97: 96 | B97: 2011-10-27 | C97: 2011-11-11 | D97: 15 | E97: 1108.908177 | F97: 949.3280985 | G97: 0 | H97: 0 | J97: 2341007.244 | K97: -336888.236 | L97: -0.1439073873 | M97: -0.1439073873 | N97: 0 | O97: 2004119.007
A98: 97 | B98: 2011-11-23 | C98: 2011-12-08 | D98: 15 | E98: 0 | F98: 0 | G98: 896.3466025 | H98: 984.594051 | J98: 2004119.007 | K98: -179625.6932 | L98: -0.08962825685 | M98: 0 | N98: -0.08962825685 | O98: 1824493.314
A99: 98 | B99: 2011-12-23 | C99: 2012-03-09 | D99: 77 | E99: 976.96824 | F99: 1091.650901 | G99: 0 | H99: 0 | J99: 1824493.314 | K99: 214170.4721 | L99: 0.117386274 | M99: 0.117386274 | N99: 0 | O99: 2038663.786
A100: 99 | B100: 2012-03-20 | C100: 2012-03-29 | D100: 9 | E100: 1116.313878 | F100: 1070.873296 | G100: 0 | H100: 0 | J100: 2038663.786 | K100: -82985.68333 | L100: -0.04070591918 | M100: -0.04070591918 | N100: 0 | O100: 1955678.103
A101: 100 | B101: 2012-04-11 | C101: 2012-06-20 | D101: 70 | E101: 0 | F101: 0 | G101: 1013.736878 | H101: 1006.084791 | J101: 1955678.103 | K101: 14874.5107 | L101: 0.007605807252 | M101: 0 | N101: 0.007605807252 | O101: 1970552.614
A102: 101 | B102: 2012-07-16 | C102: 2012-08-31 | D102: 46 | E102: 1032.428956 | F102: 1043.516981 | G102: 0 | H102: 0 | J102: 1970552.614 | K102: 21163.23311 | L102: 0.01073974527 | M102: 0.01073974527 | N102: 0 | O102: 1991715.847
A103: 102 | B103: 2012-09-18 | C103: 2012-10-11 | D103: 23 | E103: 1104.527988 | F103: 1057.022224 | G103: 0 | H103: 0 | J103: 1991715.847 | K103: -85663.72515 | L103: -0.04301001334 | M103: -0.04301001334 | N103: 0 | O103: 1906052.122
A104: 103 | B104: 2012-10-24 | C104: 2012-11-29 | D104: 36 | E104: 0 | F104: 0 | G104: 1043.171153 | H104: 1075.064263 | J104: 1906052.122 | K104: -56545.39179 | L104: -0.02966623585 | M104: 0 | N104: -0.02966623585 | O104: 1849506.73
A105: 104 | B105: 2012-11-29 | C105: 2013-03-27 | D105: 118 | E105: 1075.064263 | F105: 1196.574413 | G105: 0 | H105: 0 | J105: 1849506.73 | K105: 209042.2385 | L105: 0.113025941 | M105: 0.113025941 | N105: 0 | O105: 2058548.968
A106: 105 | B106: 2013-04-18 | C106: 2013-05-06 | D106: 18 | E106: 0 | F106: 0 | G106: 1150.518453 | H106: 1202.935167 | J106: 2058548.968 | K106: -89699.2419 | L106: -0.04357401416 | M106: 0 | N106: -0.04357401416 | O106: 1968849.727
A107: 106 | B107: 2013-05-06 | C107: 2013-06-05 | D107: 30 | E107: 1202.624011 | F107: 1200.729335 | G107: 0 | H107: 0 | J107: 1968849.727 | K107: -3101.828396 | L107: -0.00157545208 | M107: -0.00157545208 | N107: 0 | O107: 1965747.898
A108: 107 | B108: 2013-06-20 | C108: 2013-07-09 | D108: 19 | E108: 0 | F108: 0 | G108: 1162.292563 | H108: 1186.679043 | J108: 1965747.898 | K108: -40396.49313 | L108: -0.02055019017 | M108: 0 | N108: -0.02055019017 | O108: 1925351.405
A109: 108 | B109: 2013-07-18 | C109: 2013-08-27 | D109: 40 | E109: 1208.516956 | F109: 1240.205587 | G109: 0 | H109: 0 | J109: 1925351.405 | K109: 50484.81027 | L109: 0.02622108886 | M109: 0.02622108886 | N109: 0 | O109: 1975836.215
A110: 109 | B110: 2013-09-10 | C110: 2013-10-09 | D110: 29 | E110: 1256.351862 | F110: 1238.82128 | G110: 0 | H110: 0 | J110: 1975836.215 | K110: -27569.9514 | L110: -0.01395356112 | M110: -0.01395356112 | N110: 0 | O110: 1948266.264
A111: 110 | B111: 2013-10-22 | C111: 2013-12-10 | D111: 49 | E111: 1292.054705 | F111: 1279.336012 | G111: 0 | H111: 0 | J111: 1948266.264 | K111: -19178.28977 | L111: -0.009843772447 | M111: -0.009843772447 | N111: 0 | O111: 1929087.974
A112: 111 | B112: 2014-01-03 | C112: 2014-02-03 | D112: 31 | E112: 1324.291815 | F112: 1302.190579 | G112: 0 | H112: 0 | J112: 1929087.974 | K112: -32194.73842 | L112: -0.01668909809 | M112: -0.01668909809 | N112: 0 | O112: 1896893.236
A113: 112 | B113: 2014-02-18 | C113: 2014-03-20 | D113: 30 | E113: 1343.822576 | F113: 1349.278024 | G113: 0 | H113: 0 | J113: 1896893.236 | K113: 7700.720763 | L113: 0.004059649019 | M113: 0.004059649019 | N113: 0 | O113: 1904593.956
A114: 113 | B114: 2014-03-31 | C114: 2014-04-23 | D114: 23 | E114: 1351.479402 | F114: 1362.877221 | G114: 0 | H114: 0 | J114: 1904593.956 | K114: 16062.55796 | L114: 0.008433586545 | M114: 0.008433586545 | N114: 0 | O114: 1920656.514
A115: 114 | B115: 2014-05-05 | C115: 2014-06-25 | D115: 51 | E115: 1358.284803 | F115: 1393.049127 | G115: 0 | H115: 0 | J115: 1920656.514 | K115: 49157.82405 | L115: 0.02559428179 | M115: 0.02559428179 | N115: 0 | O115: 1969814.338
A116: 115 | B116: 2014-07-24 | C116: 2014-08-06 | D116: 13 | E116: 1399.121211 | F116: 1358.202559 | G116: 0 | H116: 0 | J116: 1969814.338 | K116: -57609.12406 | L116: -0.02924596645 | M116: -0.02924596645 | N116: 0 | O116: 1912205.214
A117: 116 | B117: 2014-08-06 | C117: 2014-08-22 | D117: 16 | E117: 0 | F117: 0 | G117: 1358.202559 | H117: 1386.359833 | J117: 1912205.214 | K117: -38837.31036 | L117: -0.02031022093 | M117: 0 | N117: -0.02031022093 | O117: 1873367.904
A118: 117 | B118: 2014-09-09 | C118: 2014-10-02 | D118: 23 | E118: 1390.188747 | F118: 1381.574867 | G118: 0 | H118: 0 | J118: 1873367.904 | K118: -11607.75208 | L118: -0.006196194595 | M118: -0.006196194595 | N118: 0 | O118: 1861760.152
A119: 118 | B119: 2014-10-03 | C119: 2014-10-30 | D119: 27 | E119: 0 | F119: 0 | G119: 1361.177071 | H119: 1396.568935 | J119: 1861760.152 | K119: -47180.74515 | L119: -0.02534201041 | M119: 0 | N119: -0.02534201041 | O119: 1814579.407
A120: 119 | B120: 2014-11-05 | C120: 2014-12-18 | D120: 43 | E120: 1408.479888 | F120: 1423.221033 | G120: 0 | H120: 0 | J120: 1814579.407 | K120: 18991.38162 | L120: 0.01046599644 | M120: 0.01046599644 | N120: 0 | O120: 1833570.788
A121: 120 | B121: 2015-01-05 | C121: 2015-04-21 | D121: 106 | E121: 1462.077673 | F121: 1683.293932 | G121: 0 | H121: 0 | J121: 1833570.788 | K121: 277424.1594 | L121: 0.1513026719 | M121: 0.1513026719 | N121: 0 | O121: 2110994.948
A122: 121 | B122: 2015-05-13 | C122: 2015-05-28 | D122: 15 | E122: 0 | F122: 0 | G122: 1603.370914 | H122: 1662.734952 | J122: 2110994.948 | K122: -75368.10675 | L122: -0.03570264667 | M122: 0 | N122: -0.03570264667 | O122: 2035626.841
A123: 122 | B123: 2015-06-16 | C123: 2015-07-21 | D123: 35 | E123: 0 | F123: 0 | G123: 1557.155033 | H123: 1657.641406 | J123: 2035626.841 | K123: -123399.8851 | L123: -0.06062009136 | M123: 0 | N123: -0.06062009136 | O123: 1912226.956
A124: 123 | B124: 2015-07-21 | C124: 2015-08-14 | D124: 24 | E124: 1657.641406 | F124: 1593.398902 | G124: 0 | H124: 0 | J124: 1912226.956 | K124: -74109.06143 | L124: -0.03875536907 | M124: -0.03875536907 | N124: 0 | O124: 1838117.895
A125: 124 | B125: 2015-08-20 | C125: 2015-10-13 | D125: 54 | E125: 0 | F125: 0 | G125: 1545.534846 | H125: 1483.840549 | J125: 1838117.895 | K125: 76424.24277 | L125: 0.04157744343 | M125: 0 | N125: 0.04157744343 | O125: 1914542.137
A126: 125 | B126: 2015-11-05 | C126: 2015-12-16 | D126: 41 | E126: 1530.612924 | F126: 1427.860713 | G126: 0 | H126: 0 | J126: 1914542.137 | K126: -128525.9229 | L126: -0.06713141506 | M126: -0.06713141506 | N126: 0 | O126: 1786016.214
A127: 126 | B127: 2015-12-16 | C127: 2016-02-25 | D127: 71 | E127: 0 | F127: 0 | G127: 1427.860713 | H127: 1328.973154 | J127: 1786016.214 | K127: 132895.6732 | L127: 0.0744089959 | M127: 0 | N127: 0.0744089959 | O127: 1918911.888
A128: 127 | B128: 2016-03-15 | C128: 2016-03-31 | D128: 16 | E128: 1424.707998 | F128: 1374.633339 | G128: 0 | H128: 0 | J128: 1918911.888 | K128: -67444.59749 | L128: -0.03514731339 | M128: -0.03514731339 | N128: 0 | O128: 1851467.29
A129: 128 | B129: 2016-04-29 | C129: 2016-05-04 | D129: 5 | E129: 1390.813059 | F129: 1334.767282 | G129: 0 | H129: 0 | J129: 1851467.29 | K129: -74608.82055 | L129: -0.04029713133 | M129: -0.04029713133 | N129: 0 | O129: 1776858.47
A130: 129 | B130: 2016-05-04 | C130: 2016-06-01 | D130: 28 | E130: 0 | F130: 0 | G130: 1334.767282 | H130: 1370.130723 | J130: 1776858.47 | K130: -45861.19245 | L130: -0.02581026752 | M130: 0 | N130: -0.02581026752 | O130: 1730997.277
A131: 130 | B131: 2016-06-14 | C131: 2016-07-11 | D131: 27 | E131: 0 | F131: 0 | G131: 1293.287033 | H131: 1351.201263 | J131: 1730997.277 | K131: -74192.77733 | L131: -0.04286129061 | M131: 0 | N131: -0.04286129061 | O131: 1656804.5
A132: 131 | B132: 2016-07-18 | C132: 2016-11-04 | D132: 109 | E132: 1373.06619 | F132: 1419.481904 | G132: 0 | H132: 0 | J132: 1656804.5 | K132: 56007.32461 | L132: 0.0338044257 | M132: 0.0338044257 | N132: 0 | O132: 1712811.824
A133: 132 | B133: 2016-11-22 | C133: 2017-01-16 | D133: 55 | E133: 1480.126693 | F133: 1517.265988 | G133: 0 | H133: 0 | J133: 1712811.824 | K133: 42977.82223 | L133: 0.0250919696 | M133: 0.0250919696 | N133: 0 | O133: 1755789.647
A134: 133 | B134: 2017-01-30 | C134: 2017-03-29 | D134: 58 | E134: 1539.328279 | F134: 1579.672769 | G134: 0 | H134: 0 | J134: 1755789.647 | K134: 46017.75789 | L134: 0.02620915209 | M134: 0.02620915209 | N134: 0 | O134: 1801807.405
A135: 134 | B135: 2017-04-25 | C135: 2017-07-19 | D135: 85 | E135: 1610.811003 | F135: 1606.281458 | G135: 0 | H135: 0 | J135: 1801807.405 | K135: -5066.620855 | L135: -0.002811965831 | M135: -0.002811965831 | N135: 0 | O135: 1796740.784
A136: 135 | B136: 2017-07-21 | C136: 2017-09-12 | D136: 53 | E136: 0 | F136: 0 | G136: 1596.396403 | H136: 1572.663939 | J136: 1796740.784 | K136: 27113.92053 | L136: 0.01509061339 | M136: 0 | N136: 0.01509061339 | O136: 1823854.704
A137: 136 | B137: 2017-09-22 | C137: 2017-11-20 | D137: 59 | E137: 1596.253728 | F137: 1616.815188 | G137: 0 | H137: 0 | J137: 1823854.704 | K137: 23493.20468 | L137: 0.0128810725 | M137: 0.0128810725 | N137: 0 | O137: 1847347.909
A138: 137 | B138: 2017-12-18 | C138: 2018-01-15 | D138: 28 | E138: 0 | F138: 0 | G138: 1599.878661 | H138: 1629.638412 | J138: 1847347.909 | K138: -33735.46812 | L138: -0.01826156728 | M138: 0 | N138: -0.01826156728 | O138: 1813612.441
A139: 138 | B139: 2018-01-23 | C139: 2018-02-06 | D139: 14 | E139: 1637.349265 | F139: 1534.442395 | G139: 0 | H139: 0 | J139: 1813612.441 | K139: -113984.9539 | L139: -0.0628496758 | M139: -0.0628496758 | N139: 0 | O139: 1699627.487
A140: 139 | B140: 2018-02-06 | C140: 2018-02-28 | D140: 22 | E140: 0 | F140: 0 | G140: 1534.442395 | H140: 1587.582394 | J140: 1699627.487 | K140: -56890.404 | L140: -0.03347227815 | M140: 0 | N140: -0.03347227815 | O140: 1642737.083
A141: 140 | B141: 2018-03-13 | C141: 2018-03-26 | D141: 13 | E141: 1593.93657 | F141: 1512.865189 | G141: 0 | H141: 0 | J141: 1642737.083 | K141: -83553.49042 | L141: -0.05086236336 | M141: -0.05086236336 | N141: 0 | O141: 1559183.592
A142: 141 | B142: 2018-03-26 | C142: 2018-04-23 | D142: 28 | E142: 0 | F142: 0 | G142: 1512.865189 | H142: 1573.80651 | J142: 1559183.592 | K142: -60375.08881 | L142: -0.03872224483 | M142: 0 | N142: -0.03872224483 | O142: 1498808.504
A143: 142 | B143: 2018-04-23 | C143: 2018-06-04 | D143: 42 | E143: 1573.80651 | F143: 1569.381916 | G143: 0 | H143: 0 | J143: 1498808.504 | K143: -4213.744397 | L143: -0.00281139611 | M143: -0.00281139611 | N143: 0 | O143: 1494594.759
A144: 143 | B144: 2018-06-25 | C144: 2018-07-19 | D144: 24 | E144: 0 | F144: 0 | G144: 1547.874675 | H144: 1572.092653 | J144: 1494594.759 | K144: -23024.12833 | L144: -0.01540493046 | M144: 0 | N144: -0.01540493046 | O144: 1471570.631
A145: 144 | B145: 2018-07-20 | C145: 2018-09-17 | D145: 59 | E145: 1582.977093 | F145: 1632.746219 | G145: 0 | H145: 0 | J145: 1471570.631 | K145: 46266.48341 | L145: 0.03144020575 | M145: 0.03144020575 | N145: 0 | O145: 1517837.114
A146: 145 | B146: 2018-09-27 | C146: 2018-10-16 | D146: 19 | E146: 1658.895033 | F146: 1534.442395 | G146: 0 | H146: 0 | J146: 1517837.114 | K146: -113870.2746 | L146: -0.07502140613 | M146: -0.07502140613 | N146: 0 | O146: 1403966.84
A147: 146 | B147: 2018-10-16 | C147: 2018-12-04 | D147: 49 | E147: 0 | F147: 0 | G147: 1534.442395 | H147: 1529.299268 | J147: 1403966.84 | K147: 4721.626837 | L147: 0.003363061508 | M147: 0 | N147: 0.003363061508 | O147: 1408688.467
A148: 147 | B148: 2018-12-06 | C148: 2019-01-17 | D148: 42 | E148: 0 | F148: 0 | G148: 1476.50138 | H148: 1468.882074 | J148: 1408688.467 | K148: 7307.072961 | L148: 0.005187146153 | M148: 0 | N148: 0.005187146153 | O148: 1415995.54
A149: 148 | B149: 2019-02-01 | C149: 2019-04-01 | D149: 59 | E149: 1516.579911 | F149: 1554.069577 | G149: 0 | H149: 0 | J149: 1415995.54 | K149: 35003.23243 | L149: 0.02471987478 | M149: 0.02471987478 | N149: 0 | O149: 1450998.772
A150: 149 | B150: 2019-04-11 | C150: 2019-05-13 | D150: 32 | E150: 1627.27323 | F150: 1602.204497 | G150: 0 | H150: 0 | J150: 1450998.772 | K150: -22353.16118 | L150: -0.01540536189 | M150: -0.01540536189 | N150: 0 | O150: 1428645.611
A151: 150 | B151: 2019-05-24 | C151: 2019-06-18 | D151: 25 | E151: 0 | F151: 0 | G151: 1562.557331 | H151: 1587.582394 | J151: 1428645.611 | K151: -22519.74321 | L151: -0.01576300171 | M151: 0 | N151: -0.01576300171 | O151: 1406125.868
A152: 151 | B152: 2019-07-01 | C152: 2019-07-18 | D152: 17 | E152: 1623.73146 | F152: 1598.717242 | G152: 0 | H152: 0 | J152: 1406125.868 | K152: -21661.9192 | L152: -0.0154053913 | M152: -0.0154053913 | N152: 0 | O152: 1384463.948
A153: 152 | B153: 2019-08-05 | C153: 2019-09-05 | D153: 31 | E153: 0 | F153: 0 | G153: 1565.965626 | H153: 1582.977093 | J153: 1384463.948 | K153: -14878.14547 | L153: -0.01074650263 | M153: 0 | N153: -0.01074650263 | O153: 1369585.803
A154: 153 | B154: 2019-09-10 | C154: 2019-10-08 | D154: 28 | E154: 1611.396295 | F154: 1617.9906 | G154: 0 | H154: 0 | J154: 1369585.803 | K154: 5604.745306 | L154: 0.004092292205 | M154: 0.004092292205 | N154: 0 | O154: 1375190.548
A155: 154 | B155: 2019-10-16 | C155: 2019-11-26 | D155: 41 | E155: 1670.987076 | F155: 1741.76868 | G155: 0 | H155: 0 | J155: 1375190.548 | K155: 58251.91242 | L155: 0.04235915706 | M155: 0.04235915706 | N155: 0 | O155: 1433442.461
A156: 155 | B156: 2019-12-16 | C156: 2020-02-04 | D156: 50 | E156: 1772.592854 | F156: 1784.017545 | G156: 0 | H156: 0 | J156: 1433442.461 | K156: 9238.803972 | L156: 0.006445186483 | M156: 0.006445186483 | N156: 0 | O156: 1442681.265
A157: 156 | B157: 2020-02-10 | C157: 2020-03-04 | D157: 23 | E157: 1849.207141 | F157: 1702.992078 | G157: 0 | H157: 0 | J157: 1442681.265 | K157: -114071.4461 | L157: -0.07906905626 | M157: -0.07906905626 | N157: 0 | O157: 1328609.819
A158: 157 | B158: 2020-03-04 | C158: 2020-04-14 | D158: 41 | E158: 0 | F158: 0 | G158: 1702.992078 | H158: 1529.582409 | J158: 1328609.819 | K158: 150625.2867 | L158: 0.1133705958 | M158: 0 | N158: 0.1133705958 | O158: 1479235.105
J159: 1479235.105 | K159: #DIV/0! | L159: #DIV/0! | M159: #DIV/0! | N159: #DIV/0! | O159: #DIV/0!
D160: =AVERAGE(D2:D158) -> 52.24840764
A163: Total | B163: ´ | F163: Period 1 | G163: Period 1 | J163: Period 2 | K163: Period 2 | N163: Period 3
B164: Antal trades | C164: 157 | G164: Trades | H164: 44 | K164: Antal trades | L164: 49 | O164: Antal trades | P164: 64
B165: ICH Vinst % | C165: 13.7924 | G165: Vinst % | H165: 740,5% | K165: Vinst % | L165: 143,01% | O165: Vinst % | P165: -29,27%
B166: Vinst kr | C166: 1 379 235 kr | G166: Vinst kr | H166: 740503 | K166: Vinst kr | L166: 143 007 kr | O166: Vinst kr | P166: -29 267 kr
B167: Vinst/trade % | C167: 0.0208 | G167: Vinst/trade % | H167: 57.51 | K167: Vinst/trade % | L167: 1,68% | O167: Vinst/trade % | P167: -0,39%
B168: Vinst/trade kr | C168: 8 785 kr | G168: Vinst/trade kr | H168: 16 830 kr | K168: Vinst/trade kr | L168: 2 424 kr | O168: Vinst/trade kr | P168: -457 kr
B169: Dagar/trade | C169: 52 | G169: Dagar/trade | H169: 53 | K169: Dagar/trade | L169: 69,4 | O169: Dagar/trade | P169: 38,3
B170: Spreadkostnader | C170: 251 464 kr | G170: Spread kostnader | H170: 41 094 kr | K170: Spread kostnader | L170: 12 204 kr | O170: Spread kostnader | P170: 4 675 kr
B171: Vinstaffärer | C171: 81 | G171: Vinstaffärer | H171: 25 | K171: Vinstaffärer | L171: 30 | O171: Vinstaffärer | P171: 26
B172: Förlustaffärer | C172: 76 | G172: Förlustaffärer | H172: 19 | K172: Förlustaffärer | L172: 19 | O172: Förlustaffärer | P172: 38
B173: Lång-trades | C173: 95 | G173: Köptrades | H173: 23 | K173: Köptrades | L173: 33 | O173: Köptrades | P173: 39
B174: Kort-trades | C174: 62 | G174: Shorttrades | H174: 21 | K174: Shorttrades | L174: 16 | O174: Shorttrades | P174: 25
B175: Re-entries | C175: 69 | G175: Re-entries | H175: 18 | K175: Re-entries | L175: 27 | O175: Re-entries | P175: 24
B176: Vinst/Vinsttrade | C176: 73.64 | G176: Vinst/Vinsttrade | H176: 0.12668 | K176: Vinst/Vinsttrade | L176: 0.05568 | O176: Vinst/Vinsttrade | P176: 0.04337
B177: Förlust/Förlusttrade | C177: -0.03542 | G177: Förlust/Förlusttrade | H177: -0.0335 | K177: Förlust/Förlusttrade | L177: -0.03562 | O177: Förlust/Förlusttrade | P177: -0.03627
B178: Vinst/Långtrade | C178: 0.02543 | G178: Vinst/Långtrade | H178: 0.07414 | K178: Vinst/Långtrade | L178: 0.02506 | O178: Vinst/Långtrade | P178: -0.00298
B179: Vinst/Shorttrade | C179: 0.01383 | G179: Vinst/Shorttrade | H179: 0.0393 | K179: Vinst/Shorttrade | L179: 0.01041 | O179: Vinst/Shorttrade | P179: -0.00538
B180: Vinst om man bara går Lång | C180: 684 536 kr
B181: Vinst bara Short | C181: 88 583 kr
B182: Vinst/förlust ratio | C182: 0.51592
B183: BAH% | C183: 4.33
B184: MSE% | C184: 12.3

Sheet BAH
A1: Date | B1: Closeprice/Trade | C1: %BAH | E1: BAH start | H1: Period 1 | I1: Date | J1: Closeprice/Trade | K1: %BH
A2: 1995-01-02 | B2: 288 | C2: 0 | E2: 288 | I2: 1995-01-02 | J2: 288 | K2: 0
A3: 1995-12-30 | B3: 344 | C3: =B3/E3-1 -> 0.1944444444 | E3: 288 | I3: 1995-12-30 | J3: 344 | K3: =J3/J2-1 -> 0.1944444444
A4: 1996-12-31 | B4: 502.59 | C4: 0.7451041667 | E4: 288 | I4: 1996-12-31 | J4: 502.59 | K4: 0.4610174419
A5: 1997-12-30 | B5: 599.71 | C5: 1.082326389 | E5: 288 | I5: 1997-12-30 | J5: 599.71 | K5: 1.08
A6: 1998-12-30 | B6: 701.31 | C6: 1.435104167 | E6: 288 | I6: 1998-12-30 | J6: 701.31 | K6: 1.44
A7: 1999-12-30 | B7: 1198.97 | C7: 3.163090278 | E7: 288 | I7: 1999-12-30 | J7: 1 198.97 | K7: 3.16
A8: 2000-12-29 | B8: 1056.11 | C8: 2.667048611 | E8: 288 | I8: 2000-12-29 | J8: 1 056.11 | K8: 2.67
A9: 2001-12-28 | B9: 846.49 | C9: 1.939201389 | E9: 288 | I9: 2001-12-28 | J9: 846.49 | K9: 1.94
A10: 2002-12-30 | B10: 493.2 | C10: 0.7125 | E10: 288 | I10: 2002-12-30 | J10: 493.2 | K10: 0.71
A11: 2003-12-30 | B11: 636.29 | C11: 1.209340278 | E11: 288 | I11: 2003-12-30 | J11: 636.29 | K11: 1.21
A12: 2004-12-30 | B12: 741.88 | C12: 1.575972222 | E12: 288
A13: 2005-12-30 | B13: 960.01 | C13: 2.333368056 | E13: 288 | H13: Period 2 | I13: 2004-12-30 | J13: 741.88 | K13: =J13/H14-1 -> 0.1659463452
A14: 2006-12-29 | B14: 1147.27 | C14: 2.983576389 | E14: 288 | H14: 636.29 | I14: 2005-12-30 | J14: 960.01 | K14: 0.5087617281
A15: 2007-12-28 | B15: 1081.44 | C15: 2.755 | E15: 288 | H15: 636.29 | I15: 2006-12-29 | J15: 1147.27 | K15: 0.8030614971
A16: 2008-12-30 | B16: 662.33 | C16: 1.299756944 | E16: 288 | H16: 636.29 | I16: 2007-12-28 | J16: 1081.44 | K16: 0.6996023826
A17: 2009-12-30 | B17: 951.72 | C17: 2.304583333 | E17: 288 | H17: 636.29 | I17: 2008-12-30 | J17: 662.33 | K17: 0.04092473558
A18: 2010-12-30 | B18: 1155.57 | C18: 3.012395833 | E18: 288 | H18: 636.29 | I18: 2009-12-30 | J18: 951.72 | K18: 0.4957330777
A19: 2011-12-30 | B19: 987.85 | C19: 2.430034722 | E19: 288 | H19: 636.29 | I19: 2010-12-30 | J19: 1155.57 | K19: 0.8161058637
A20: 2012-12-28 | B20: 1104.73 | C20: 2.835868056 | E20: 288 | H20: 636.29 | I20: 2011-12-30 | J20: 987.85 | K20: 0.5525153625
A21: 2013-12-30 | B21: 1332.95 | C21: 3.628298611 | E21: 288 | H21: 636.29
A22: 2014-12-30 | B22: 1464.55 | C22: 4.085243056 | E22: 288
A23: 2015-12-30 | B23: 1446.82 | C23: 4.023680556 | E23: 288 | H23: Period 3 | I23: 2012-12-28 | J23: 1104.73 | K23: =J23/H24-1 -> 0.1183175583
A24: 2016-12-30 | B24: 1517.2 | C24: 4.268055556 | E24: 288 | H24: 987.85 | I24: 2013-12-30 | J24: 1332.95 | K24: 0.3493445361
A25: 2017-12-29 | B25: 1576.94 | C25: 4.475486111 | E25: 288 | H25: 987.85 | I25: 2014-12-30 | J25: 1464.55 | K25: 0.4825631422
A26: 2018-12-28 | B26: 1408.74 | C26: 3.891458333 | E26: 288 | H26: 987.85 | I26: 2015-12-30 | J26: 1446.82 | K26: 0.4646150731
A27: 2019-12-30 | B27: 1771.85 | C27: 5.152256944 | E27: 288 | H27: 987.85 | I27: 2016-12-30 | J27: 1517.2 | K27: 0.5358607076
A28: 2020-04-14 | B28: 1535.84 | C28: 4.332777778 | E28: 288 | H28: 987.85 | I28: 2017-12-29 | J28: 1576.94 | K28: 0.596335476
H29: 987.85 | I29: 2018-12-28 | J29: 1408.74 | K29: 0.4260667105
H30: 987.85 | I30: 2019-12-30 | J30: 1771.85 | K30: 0.7936427595
H31: 987.85 | I31: 2020-04-14 | J31: 1535.84 | K31: 0.5547299691
H32: 987.85

Sheet MSE
A1: 1 maj 30 oktober 1 november 30 april | B1: MSE% | H1: Kr mse | K1: MSE UTAN VINST
A2: 1995-02-01 | B2: =H2/J2-1 -> 0 | H2: 100000 | J2: 100000 | K2: =J2*M2 -> 0
A3: 30/04/95 | B3: 0.0653787767 | H3: 106537.8777 | J3: 100000 | K3: 6537.87767 | M3: =H3/H2-1 -> 0.0653787767
A4: 30/10/95 | B4: -0.02587516327 | H4: 97412.48367 | J4: 100000 | K4: -8565.398708 | M4: -0.08565398708 | Q4: 0.0653787767 | S4: -0.08565398708
A5: 30/04/96 | B5: 0.106001434 | H5: 110600.1434 | J5: 100000 | K5: 13537.95656 | M5: 0.1353795656 | Q5: 0.1353795656 | S5: -0.1427344967
A6: 30/10/96 | B6: 0.008069064784 | H6: 100806.9065 | J6: 100000 | K6: -8854.63311 | M6: -0.0885463311 | Q6: 0.2282955644 | S6: -0.0885463311
A7: 30/04/97 | B7: 0.2761334842 | H7: 127613.3484 | J7: 100000 | K7: 26591.87041 | M7: 0.2659187041 | Q7: 0.07032079379 | S7: -0.1008164824
A8: 30/10/97 | B8: 0.1474781952 | H8: 114747.8195 | J8: 100000 | K8: -10081.64824 | M8: -0.1008164824 | Q8: 0.2659187041 | S8: -0.2160125779
A9: 30/04/98 | B9: 0.4569532123 | H9: 145695.3212 | J9: 100000 | K9: 26970.01288 | M9: 0.2697001288 | Q9: 0.2608180084 | S9: -0.05099738417
A10: 30/10/98 | B10: 0.6965383323 | H10: 169653.8332 | J10: 100000 | K10: 16444.25627 | M10: 0.1644425627 | Q10: 0.2697001288 | S10: -0.1532233035
A11: 30/04/99 | B11: 1.083850508 | H11: 208385.0508 | J11: 100000 | K11: 22829.55644 | M11: 0.2282955644 | Q11: 0.1644425627 | S11: -0.01769101205
A12: 30/10/99 | B12: 0.7864131549 | H12: 178641.3155 | J12: 100000 | K12: -14273.44967 | M12: -0.1427344967 | Q12: 0.4033498818 | S12: -0.1554990568
A13: 30/04/00 | B13: 1.831152145 | H13: 283115.2145 | J13: 100000 | K13: 58482.49532 | M13: 0.5848249532 | Q13: 0.02532726079 | S13: -0.03732327732
A14: 30/10/00 | B14: 2.458764857 | H14: 345876.4857 | J14: 100000 | K14: 22168.10259 | M14: 0.2216810259 | O14: 17.46 | Q14: 0.5848249532 | S14: -0.07332321695
A15: 30/04/01 | B15: 1.711628144 | H15: 271162.8144 | J15: 100000 | K15: -21601.25779 | M15: -0.2160125779 | Q15: 0.2216810259 | S15: -0.05614064276
A16: 30/10/01 | B16: 2.418869596 | H16: 341886.9596 | J16: 100000 | K16: 26081.80084 | M16: 0.2608180084 | O16: 2.6 | Q16: 0.1142502961 | S16: -0.03426668054
A17: 30/04/02 | B17: 2.244516189 | H17: 324451.6189 | J17: 100000 | K17: -5099.738417 | M17: -0.05099738417 | O17: 2.4 | Q17: 0.2013299916 | S17: -0.1613186246
A18: 30/10/02 | B18: 3.553191411 | H18: 455319.1411 | J18: 100000 | K18: 40334.98818 | M18: 0.4033498818 | Q18: 0.1663524623 | S18: -0.1882749761
A19: 30/04/03 | B19: 3.668511277 | H19: 466851.1277 | J19: 100000 | K19: 2532.726079 | M19: 0.02532726079 | Q19: 0.07644423365 | S19: -0.104614112
A20: 30/10/03 | B20: 2.915393459 | H20: 391539.3459 | J20: 100000 | K20: -16131.86246 | M20: -0.1613186246 | Q20: 0.05861100537 | S20: -0.06153360553
A21: 30/04/04 | B21: 3.362728321 | H21: 436272.8321 | J21: 100000 | K21: 11425.02961 | M21: 0.1142502961 | Q21: 0.210130594 | S21: -0.09268666733
A22: 30/10/04 | B22: 3.285547242 | H22: 428554.7242 | J22: 100000 | K22: -1769.101205 | M22: -0.01769101205 | Q22: 0.03910957299 | S22: -0.0428275032
A23: 30/04/05 | B23: 3.586910325 | H23: 458691.0325 | J23: 100000 | K23: 7032.079379 | M23: 0.07032079379 | Q23: 0.01769237949 | S23: -0.0327256906
A24: 30/10/05 | B24: 2.884088773 | H24: 388408.8773 | J24: 100000 | K24: -15322.33035 | M24: -0.1532233035 | Q24: 0.5407910313 | S24: -0.02696689141
A25: 30/04/06 | B25: 3.666072332 | H25: 466607.2332 | J25: 100000 | K25: 20132.99916 | M25: 0.2013299916 | Q25: 0.2497827156
A26: 30/10/06 | B26: 3.491919221 | H26: 449191.9221 | J26: 100000 | K26: -3732.327732 | M26: -0.03732327732 | Q26: 0.1251738877 | S26: =SUM(S4:S24) -> -1.92317652
A27: 30/04/07 | B27: 4.239161044 | H27: 523916.1044 | J27: 100000 | K27: 16635.24623 | M27: 0.1663524623 | Q27: 0.1848419529 | S27: =S26/21 -> -0.09157983429
A28: 30/10/07 | B28: 4.639664695 | H28: 563966.4695 | J28: 100000 | K28: 7644.423365 | M28: 0.07644423365 | Q28: 0.1040452272
A29: 30/04/08 | B29: 3.762702154 | H29: 476270.2154 | J29: 100000 | K29: -15549.90568 | M29: -0.1554990568 | Q29: 0.05810197947
A30: 30/10/08 | B30: 6.338328764 | H30: 733832.8764 | J30: 100000 | K30: 54079.10313 | M30: 0.5407910313 | Q30: 0.1316971464
A31: 30/04/09 | B31: 8.17131645 | H31: 917131.645 | J31: 100000 | K31: 24978.27156 | M31: 0.2497827156 | Q31: 0.1226713081
A32: 30/10/09 | B32: 6.444587065 | H32: 744458.7065 | J32: 100000 | K32: -18827.49761 | M32: -0.1882749761 | Q32: 0.03561986616
A33: 30/04/10 | B33: 7.425017938 | H33: 842501.7938 | J33: 100000 | K33: 13169.71464 | M33: 0.1316971464 | Q33: 0.1092570579
A34: 30/10/10 | B34: 7.064195455 | H34: 806419.5455 | J34: 100000 | K34: -4282.75032 | M34: -0.0428275032
A35: 30/04/11 | B35: 7.536846058 | H35: 853684.6058 | J35: 100000 | K35: 5861.100537 | M35: 0.05861100537 | Q35: =SUM(Q4:Q33) -> 5.241339935
A36: 30/10/11 | B36: 9.330698591 | H36: 1033069.859 | J36: 100000 | K36: 21013.0594 | M36: 0.210130594 | Q36: =Q35/30 -> 0.1747113312
A37: 30/04/12 | B37: 9.734727802 | H37: 1073472.78 | J37: 100000 | K37: 3910.957299 | M37: 0.03910957299
A38: 30/10/12 | B38: 9.92465068 | H38: 1092465.068 | J38: 100000 | K38: 1769.237949 | M38: 0.01769237949
A39: 30/04/13 | B39: 11.29213168 | H39: 1229213.168 | J39: 100000 | K39: 12517.38877 | M39: 0.1251738877
A40: 30/10/13 | B40: 10.39083304 | H40: 1139083.304 | J40: 100000 | K40: -7332.321695 | M40: -0.07332321695
A41: 30/04/14 | B41: 11.05266299 | H41: 1205266.299 | J41: 100000 | K41: 5810.197947 | M41: 0.05810197947
A42: 30/10/14 | B42: 10.65823127 | H42: 1165823.127 | J42: 100000 | K42: -3272.56906 | M42: -0.0327256906
A43: 30/04/15 | B43: 12.8131615 | H43: 1381316.15 | J43: 100000 | K43: 18484.19529 | M43: 0.1848419529
A44: 30/10/15 | B44: 14.25035503 | H44: 1525035.503 | J44: 100000 | K44: 10404.52272 | M44: 0.1040452272
A45: 30/04/16 | B45: 12.83685045 | H45: 1383685.045 | J45: 100000 | K45: -9268.666733 | M45: -0.09268666733
A46: 30/10/16 | B46: 11.98541915 | H46: 1298541.915 | J46: 100000 | K46: -6153.360553 | M46: -0.06153360553
A47: 30/04/17 | B47: 13.5783575 | H47: 1457835.75 | J47: 100000 | K47: 12267.13081 | M47: 0.1226713081
A48: 30/10/17 | B48: 13.18522452 | H48: 1418522.452 | J48: 100000 | K48: -2696.689141 | M48: -0.02696689141
A49: 30/04/18 | B49: 12.3888569 | H49: 1338885.69 | J49: 100000 | K49: -5614.064276 | M49: -0.05614064276
A50: 30/10/18 | B50: 12.86576619 | H50: 1386576.619 | J50: 100000 | K50: 3561.986616 | M50: 0.03561986616
A51: 30/04/19 | B51: 14.38069901 | H51: 1538069.901 | J51: 100000 | K51: 10925.70579 | M51: 0.1092570579
A52: 30/10/19 | B52: 13.85365351 | H52: 1485365.351 | J52: 100000 | K52: -3426.668054 | M52: -0.03426668054
A53: 14/04/20 | B53: 12.29975173 | H53: 1329975.173 | J53: 100000 | K53: -10461.4112 | M53: -0.104614112
K55: =SUM(K2:K53) -> 331816.3415
